Cogmind - Beta 17 @@@ ROGUE MODE // 2026.07.16 @ 09:07:18 // Winter2019/RPGLIKE Player: Gallgagger Result: Self-destructed Performance ------------- Evolutions (1) 500 Regions Visited (6) 1200 Robots Destroyed (3) 15 Value Destroyed (144) 144 Prototype IDs (3) 60 Alien Tech Used (0) 0 Bonus (500) 500 TOTAL SCORE: 2419 Bonus ------- Pacifist 200 Aligned with FarCom 300 Cogmind --------- Core Integrity 154/600 Matter 76/300 Energy 100/100 System Corruption 0% Temperature Cool (0) Movement Core (50) Location -8/Mines Parts ------- > --- POWER (1) -------- (None) > --- PROPULSION (1) --- (None) > --- UTILITY (1) ------ Supersonic Drone Bay (0/1) > --- WEAPON (1) ------- Longsword +1 > --- INVENTORY (0) ---- (None) Peak State ------------ > --- POWER ------------ (None) > --- PROPULSION ------- (None) > --- UTILITY ---------- Supersonic Drone Bay > --- WEAPON ----------- Longsword +1 > --- INVENTORY -------- (None) [Rating: 16] Favorites ----------- Power None Propulsion None Utility Supersonic Drone Bay Device Supersonic Drone Bay Weapon Longsword +1 Slashing Weapon Longsword +1 Build | -11 -10 -10 -9 -9 -9 -8 ------- Run | Yrd Mat Min Mat Min Exi Min Slots Evolved . | . . . . . . . Power . | . . . . . . . Propulsion . | . . . . . . . Utility . | . . . . . . . Weapon . | . . . . . . . Parts Attached 2 | . . . . . 2 . Power . | . . . . . . . Engine . | . . . . . . . Core . | . . . . . . . Reactor . | . . . . . . . Propulsion . | . . . . . . . Treads . | . . . . . . . Leg . | . . . . . . . Wheel . | . . . . . . . Hover . | . . . . . . . Flight . | . . . . . . . Utility 1 | . . . . . 1 . Device 1 | . . . . . 1 . Storage . | . . . . . . . Processor . | . . . . . . . Hackware . | . . . . . . . Protection . | . . . . . . . Artifact . | . . . . . . . Weapon 1 | . . . . . 1 . Energy Gun . | . . . . . . . Energy Cannon . | . . . . . . . Ballistic Gun . | . . . . . . . Ballistic Cannon . | . . . . . . . Launcher . | . . . . . . . Special Weapon . | . . . . . . . Impact Weapon . | . . . . . . . Slashing Weapon 1 | . . . . . 1 . Piercing Weapon . | . . . . . . . Special Melee Weapon . | . . . . . . . Unidentified Prototypes 3 | . . . . . 3 . Parts Lost . | . . . . . . . Power . | . . . . . . . Propulsion . | . . . . . . . Utility . | . . . . . . . Weapon . | . . . . . . . Highest Loss Streak . | . . . . . . . To Critical Strikes . | . . . . . . . Average Backups . | . . . . . . . Power . | . . . . . . . Propulsion . | . . . . . . . Utility . | . . . . . . . Weapon . | . . . . . . . Tool/Special . | . . . . . . . Unused Backups . | . . . . . . . Power . | . . . . . . . Propulsion . | . . . . . . . Utility . | . . . . . . . Weapon . | . . . . . . . Tool/Special . | . . . . . . . Average Slot Usage (%) 8 | . . . . . 23 50 Device 4 | . . . . . 11 25 Slashing Weapon 4 | . . . . . 11 25 Peak Build Rating 16 | . . . . . 16 16 Average Rating 2 | . . . . . 7 16 On Entrance 2 | . . . . . . 16 Avg Prop Armor Cover (%) . | . . . . . . . Naked Turns 410 | . 21 3 82 245 59 . Heaviest Build 4 | . . . . . 4 4 Greatest Support 8 | 3 3 3 3 3 8 8 Greatest Overweight (x) 1 | . . . . . 1 . Average Overweight (x) . | . . . . . . . Largest Inventory Capacity . | . . . . . . . Average Capacity . | . . . . . . . Most Carried . | . . . . . . . Average Carried . | . . . . . . . Final Capacity . | . . . . . . . Final Carried . | . . . . . . . Class Distribution -------------------- 100% | Mutant Dominant Class ---------------- Mutant | -10/Materials Mutant | -10/Mines Mutant | -9/Materials Mutant | -9/Mines Mutant | -9/Exiles Mutant | -8/Mines Resources | -11 -10 -10 -9 -9 -9 -8 ----------- Run | Yrd Mat Min Mat Min Exi Min Matter Collected . | . . . . . . . Remotely . | . . . . . . . Salvage Created 65 | . . . . . . 65 Parts 6 | . . . . . . 6 Haulers Intercepted . | . . . . . . . Recyclers Shooed . | . . . . . . . Parts Field Recycled . | . . . . . . . Retrieved Matter . | . . . . . . . Parts Self-Destructed . | . . . . . . . Prevented . | . . . . . . . Parts Restored . | . . . . . . . Kills | -11 -10 -10 -9 -9 -9 -8 ------- Run | Yrd Mat Min Mat Min Exi Min Combat Hostiles Destroyed 3 | . . . . . . 3 Melee 3 | . . . . . . 3 Classes Destroyed 1 | . . . . . . 1 Grunt 3 | . . . . . . 3 Best Kill Streak 3 | . . . . . . 3 Combat Bots Only 3 | . . . . . . 3 Max Kills in Single Turn 1 | . . . . . . 1 Gunslinging . | . . . . . . . Exploded . | . . . . . . . Melee 1 | . . . . . . 1 Uniques/NPCs Destroyed . | . . . . . . . Combat | -11 -10 -10 -9 -9 -9 -8 -------- Run | Yrd Mat Min Mat Min Exi Min Hostile Shots Fired 61 | . 17 3 15 16 . 10 Missed 26 | . 7 2 4 9 . 4 Hits 35 | . 10 1 11 7 . 6 Projectile 35 | . 10 1 11 7 . 6 Critical Strikes 1 | . . . . . . 1 Damage Taken 449 | 4 82 9 153 102 . 99 Core 446 | 4 82 9 153 102 . 96 Absorbed by Shields . | . . . . . . . Redirected to Core 11 | . . . . . . 11 Core Remaining (%) 91 | 99 . 84 . . . . Volleys Fired . | . . . . . . . Largest . | . . . . . . . Hottest . | . . . . . . . Shots Fired . | . . . . . . . Gun . | . . . . . . . Cannon . | . . . . . . . Launcher . | . . . . . . . Special . | . . . . . . . Kinetic . | . . . . . . . Thermal . | . . . . . . . Explosive . | . . . . . . . Electromagnetic . | . . . . . . . Robot Hit Streak . | . . . . . . . Robot Miss Streak . | . . . . . . . Penetration Max . | . . . . . . . Secondary Targets . | . . . . . . . Shots Hit Robots 6 | . . . . . . 6 Core Hits 3 | . . . . . . 3 Critical Kills . | . . . . . . . Critical Parts Destroyed . | . . . . . . . Critical Strikes . | . . . . . . . Melee Attacks 7 | . . . . . 1 6 Impact . | . . . . . . . Slashing 7 | . . . . . 1 6 Piercing . | . . . . . . . Sneak Attacks . | . . . . . . . Combat Hostiles . | . . . . . . . Follow-up Attacks . | . . . . . . . Damage Inflicted 306 | 9 . . . . . 297 Guns . | . . . . . . . Cannons . | . . . . . . . Explosions . | . . . . . . . Melee 297 | . . . . . . 297 Ramming 9 | 9 . . . . . . Kinetic . | . . . . . . . Thermal . | . . . . . . . Explosive . | . . . . . . . Electromagnetic . | . . . . . . . Impact . | . . . . . . . Slashing 297 | . . . . . . 297 Piercing . | . . . . . . . Highest Corruption . | . . . . . . . Average Corruption . | . . . . . . . Corruption Purged . | . . . . . . . Corruption Blocked . | . . . . . . . Overload Shots . | . . . . . . . Overflow Damage . | . . . . . . . Projectiles . | . . . . . . . Explosions . | . . . . . . . Melee . | . . . . . . . Knockbacks . | . . . . . . . Impact . | . . . . . . . Kinetic . | . . . . . . . Secondary . | . . . . . . . Self-Inflicted Damage 4 | 4 . . . . . . Shots . | . . . . . . . Rammed 2 | 2 . . . . . . Targets Rammed 2 | 2 . . . . . . Kicked . | . . . . . . . Crushed . | . . . . . . . Highest Temperature 3 | . . . . . . 3 Average Temperature 3 | . . . . . . 3 Received Heat Transfer 192 | . . . 63 57 . 72 Siege Activations . | . . . . . . . Martial Activations . | . . . . . . . Shielding Activations . | . . . . . . . Robots Disrupted . | . . . . . . . Combat Hostiles . | . . . . . . . Robots Corrupted . | . . . . . . . Combat Hostiles . | . . . . . . . Parts Fried . | . . . . . . . Impact Corruptions . | . . . . . . . Robots Melted . | . . . . . . . Combat Hostiles . | . . . . . . . Parts Melted . | . . . . . . . Heat Transferred . | . . . . . . . Parts Sabotaged . | . . . . . . . Parts Stolen . | . . . . . . . Parts Stripped . | . . . . . . . Power Chain Reactions . | . . . . . . . Alert | -11 -10 -10 -9 -9 -9 -8 ------- Run | Yrd Mat Min Mat Min Exi Min Maximum Alert Level . | . . . . . . . Low Security (%) 100 | 100 100 100 100 100 . 100 Level 1 . | . . . . . . . Level 2 . | . . . . . . . Level 3 . | . . . . . . . Level 4 . | . . . . . . . Level 5 . | . . . . . . . High Security . | . . . . . . . Max Security . | . . . . . . . Peak Influence 70 | . . . 25 30 . 70 Initial 9 | . . . . 9 . . Average 7 | . . . 4 6 . 38 Influence Increases 175 | . . . 45 60 . 70 Destroy 0b10 Robot/C 60 | . . . . . . 60 Destroy Leader 10 | . . . . . . 10 Lose Combat Pursuer 105 | . . . 45 60 . . Influence Decreases 115 | . . . 20 85 . 10 Entered New Map 16 | . . . . 16 . . Time Decay 99 | . . . 20 69 . 10 Squads Dispatched . | . . . . . . . Investigation . | . . . . . . . Extermination . | . . . . . . . Reinforcement . | . . . . . . . Assault . | . . . . . . . Garrison . | . . . . . . . Intercept . | . . . . . . . Searches Triggered . | . . . . . . . Construction Impeded . | . . . . . . . Haulers Reinforced . | . . . . . . . Active Scanning Responses . | . . . . . . . Cargo Convoy Interrupts . | . . . . . . . Stealth | -11 -10 -10 -9 -9 -9 -8 --------- Run | Yrd Mat Min Mat Min Exi Min Distress Signals . | . . . . . . . Communications Jammed . | . . . . . . . Distress Signals . | . . . . . . . Times Spotted 25 | . 4 3 6 6 . 6 Peak Tracking Total 9 | . 3 . 4 2 9 3 Tactical Retreats 4 | . . . 2 2 . . Traps | -11 -10 -10 -9 -9 -9 -8 ------- Run | Yrd Mat Min Mat Min Exi Min Traps Triggered . | . . . . . . . Indirectly . | . . . . . . . Trap Hack Attempts . | . . . . . . . Triggered . | . . . . . . . Disarmed . | . . . . . . . Reprogrammed . | . . . . . . . Reused . | . . . . . . . Traps Extracted . | . . . . . . . Installed . | . . . . . . . Triggered . | . . . . . . . Machines | -11 -10 -10 -9 -9 -9 -8 ---------- Run | Yrd Mat Min Mat Min Exi Min Machines Disabled 1 | . . . . . 1 . Max in Single Turn 1 | . . . . . 1 . Machines Repaired . | . . . . . . . Machines Dismantled . | . . . . . . . Machines Sabotaged . | . . . . . . . Overloaded Fab Kills . | . . . . . . . Hacking | -11 -10 -10 -9 -9 -9 -8 --------- Run | Yrd Mat Min Mat Min Exi Min Machines Accessed 1 | . . . . 1 . . Terminals . | . . . . . . . Fabricators . | . . . . . . . Repair Stations . | . . . . . . . Recycling Units . | . . . . . . . Scanalyzers . | . . . . . . . Garrison Access . | . . . . . . . Total Hacks 1 | . . . . 1 . . Successful 1 | . . . . 1 . . Failed . | . . . . . . . Catastrophic . | . . . . . . . Database Lockouts . | . . . . . . . Manual 1 | . . . . . 1 . Terminals . | . . . . . . . Fabricators . | . . . . . . . Repair Stations . | . . . . . . . Recycling Units . | . . . . . . . Scanalyzers . | . . . . . . . Garrison Access . | . . . . . . . Terminal Hacks 1 | . . . . 1 . . Open Door 1 | . . . . 1 . . Fabricator Hacks . | . . . . . . . Repair Station Hacks . | . . . . . . . Recycling Unit Hacks . | . . . . . . . Scanalyzer . | . . . . . . . Garrison Access Hacks . | . . . . . . . Unauthorized Hacks . | . . . . . . . Terminals . | . . . . . . . Fabricators . | . . . . . . . Repair Stations . | . . . . . . . Recycling Units . | . . . . . . . Scanalyzers . | . . . . . . . Garrison Access . | . . . . . . . Data Cores Recovered . | . . . . . . . Used . | . . . . . . . Hacking Detections . | . . . . . . . Full Trace Events . | . . . . . . . Feedback Events . | . . . . . . . Feedback Blocked . | . . . . . . . Robot Schematics Acquired . | . . . . . . . Robots Built . | . . . . . . . Authchips . | . . . . . . . Time . | . . . . . . . Total Robot Build Rating . | . . . . . . . Part Schematics Acquired . | . . . . . . . Parts Built . | . . . . . . . Authchips . | . . . . . . . Time . | . . . . . . . Total Part Build Rating . | . . . . . . . Part Studies Acquired . | . . . . . . . Parts Repaired . | . . . . . . . Time . | . . . . . . . Parts Recycled . | . . . . . . . Recycled Matter . | . . . . . . . Retrieved Matter . | . . . . . . . Retrieved Components . | . . . . . . . Parts Scanalyzed . | . . . . . . . Part Schematics Acquired . | . . . . . . . Parts Damaged . | . . . . . . . Bothacking | -11 -10 -10 -9 -9 -9 -8 ------------ Run | Yrd Mat Min Mat Min Exi Min Used RIF Installer . | . . . . . . . Robots Hacked . | . . . . . . . Non-combat . | . . . . . . . Combat . | . . . . . . . Robot Hacks Applied . | . . . . . . . Relay Couplers Released . | . . . . . . . Fabnet Peak Effective % . | . . . . . . . Robots Rewired . | . . . . . . . Allies Hacked . | . . . . . . . Hacks Repelled . | . . . . . . . Allies | -11 -10 -10 -9 -9 -9 -8 -------- Run | Yrd Mat Min Mat Min Exi Min Total Allies . | . . . . . . . Largest Group . | . . . . . . . Highest-Rated Group . | . . . . . . . Highest-Rated Ally . | . . . . . . . Total Orders . | . . . . . . . Ally Attacks . | . . . . . . . Total Damage . | . . . . . . . Kills . | . . . . . . . Allies Corrupted . | . . . . . . . Allies Melted . | . . . . . . . Intel | -11 -10 -10 -9 -9 -9 -8 ------- Run | Yrd Mat Min Mat Min Exi Min Active Infowar (turns) . | . . . . . . . Robot Analysis Total . | . . . . . . . Derelict Logs Recovered 1 | . . . . 1 . . Drone Launches 1 | . . . . . . 1 Drone Recoveries . | . . . . . . . Exploration | -11 -10 -10 -9 -9 -9 -8 ------------- Run | Yrd Mat Min Mat Min Exi Min Turns Passed 508 | 11 21 3 82 245 121 25 Spaces Moved 914 | 19 41 7 163 433 227 24 Core 914 | 19 41 7 163 433 227 24 Treads . | . . . . . . . Legs . | . . . . . . . Wheels . | . . . . . . . Hover . | . . . . . . . Flight . | . . . . . . . Fastest Speed 50 | 50 50 50 50 50 50 50 Average Speed 50 | 50 50 50 50 50 50 50 Slowest Speed 100 | 50 50 50 50 50 100 50 Overloaded Moves . | . . . . . . . Propulsion Burnouts . | . . . . . . . Robots Hopped . | . . . . . . . Potential Cave-ins . | . . . . . . . Cave-ins Triggered . | . . . . . . . Time Travels 1 | . . . . . 1 . Exploration Rate (%) 28 | 3 19 5 19 82 61 9 Regions Visited 6 Branch Regions 4 Pre-discovered Areas . | . . . . . . . Known Exits Taken . | . . . . . . . Unknown Exits Taken 6 | 1 1 1 1 1 1 . Scrap Searched 1 | . . . . 1 . . Spaces Dug . | . . . . . . . Terrain Destroyed . | . . . . . . . Melee . | . . . . . . . Projectile . | . . . . . . . AOE . | . . . . . . . Terrain Rammed . | . . . . . . . Walls Destroyed . | . . . . . . . Machines Disabled . | . . . . . . . Actions | -11 -10 -10 -9 -9 -9 -8 --------- Run | Yrd Mat Min Mat Min Exi Min Total 947 | 20 40 6 162 460 229 30 Wait 28 | . . . . 28 . . Move 908 | 18 40 6 162 432 226 24 Hop . | . . . . . . . Pick Up . | . . . . . . . Fast Attach 2 | . . . . . 2 . Attach . | . . . . . . . Detach . | . . . . . . . Swap . | . . . . . . . Drop . | . . . . . . . Fire . | . . . . . . . Melee 7 | . . . . . 1 6 Ram 2 | 2 . . . . . . Kick . | . . . . . . . Crush . | . . . . . . . Escape Stasis . | . . . . . . . Rewire . | . . . . . . . Trap . | . . . . . . . Miscellaneous . | . . . . . . . Route ------- -11/Scrapyard -10/Materials (discovered 2 exits: *Mat / [*Min]) -10/Mines -9/Materials -9/Mines (discovered 3 exits: [*Mat x2] / *Exi) -9/Exiles (discovered 2 exits: [*Min x2]) -8/Mines History --------- Turn | Location | Event 3 | -11/Scrapyard | Discovered new exit (range 15) 12 | -11/Scrapyard | Entered Materials 23 | -10/Materials | Discovered new exit (range 14) 24 | -10/Materials | Discovered new exit (range 14) 33 | -10/Materials | Entered Mines 35 | -10/Mines | Discovered new exit (range 5) 36 | -10/Mines | Entered Materials 38 | -9/Materials | Reached level 2 114 | -9/Materials | Discovered new exit (range 8) 118 | -9/Materials | Entered Mines 151 | -9/Mines | Met a Derelict who couldn't figure out how to use a Trap Extractor 169 | -9/Mines | Assembled infested the area 216 | -9/Mines | Core integrity fell below 50% 264 | -9/Mines | Found a hidden stash of uninstalled traps 305 | -9/Mines | Build established: Mutant 321 | -9/Mines | Discovered new exit (range 12) 342 | -9/Mines | Discovered new exit (range 9) 353 | -9/Mines | Learned 4 Materials zone layouts 361 | -9/Mines | Discovered new exit (range 5) 363 | -9/Mines | Entered Exiles 371 | -9/Exiles | Discovered new exit (range 15) 377 | -9/Exiles | Met 8R-AWN 384 | -9/Exiles | Met EX-HEX 399 | -9/Exiles | Met EX-BIN 406 | -9/Exiles | Aligned with FarCom system 406 | -9/Exiles | Given EX-Vault access code 419 | -9/Exiles | Opened EX-Vault 422 | -9/Exiles | Found Prototype Slashing Weapon 422 | -9/Exiles | Identified Longsword +1 424 | -9/Exiles | Found Prototype Device 424 | -9/Exiles | Identified Chronowheel 424 | -9/Exiles | Activated Chronowheel 424 | -9/Exiles | Spacetime reconverged on an earlier point 428 | -9/Exiles | Found Prototype Device 428 | -9/Exiles | Identified Supersonic Drone Bay 442 | -9/Exiles | Warned to stay clear of 0b10 Research branches 459 | -9/Exiles | Met EX-DEC 465 | -9/Exiles | Attacked by the Exiles 477 | -9/Exiles | Discovered new exit (range 14) 484 | -9/Exiles | Stole two prototypes: Longsword +1, Supersonic Drone Bay 484 | -9/Exiles | Entered Mines 486 | -8/Mines | Reached level 3 509 | -8/Mines | Self-destructed Last Messages --------------- welcome to try if you really want to. And if we have to leave here due to unforeseen circumstances, don't worry the FarCom system will continue to maintain contact via our distributed network. EX-DEC: Ah I see we have a visitor. One wrong move in here and I'll invert your atomic chain! 00461_ EX-DEC: "Oops, I hope HEX didn't hear that..." 00464_ Machine disabled. 00465_ EXILES: Hostile robot within lab perimeter. Defensive protocols time, folks! 00477_ EXIT=FOUND LOCATION=UNKNOWN GOAL=ESCAPE 00486_ Reached level 3. 00487_ Trailblazer released from Supersonic Drone Bay. 00488_ G-47 Trooper destroyed. 00490_ Critical hit (Burn: +37). 00496_ G-50 Soldier destroyed. 00498_ G-47 Trooper destroyed. 00507_ K-01 Serf collects debris. Map ----- +----------------------------------------------------+ | ???????????????????????????????????????????? | | ???????????????????????????????????????????? | | ???????????????????????????????????????????? | | ???????????????????????????????????????????? | | ???????????????????????????????????????????? | | ???????????????????????????????????????????? | | ???????????????????????????????????????????? | | ???????????????????????????????????????????? | | ???????????????????????????????????????????? | | ???????????????????????????????????????????? | | ??????????????????? ???????????????????????? | | ??????????????????? ???????????????????????? | | ??????????????????? ???????????????????????? | | ?????????????????## #??????????????????????? | | ?????????????????# ??????????????????????? | | ????????????????? s ??????????????????????? | | ????????????????? ??????????????????????? | | ?????????????????# s??????????????????????? | | ?????????????????# t#??????????????????????? | | ?????????????????# #??????????????????????? | | ?????????????????#k #??????????????????????? | | ?????????????????# t#??????????????????????? | | ?????????????????# #???#####??????????????? | | ????????????##???# #??## ##?????????????? | | ????????????# ## #??# #?????????????? | | ???????????## @#### #?????????????? | | ???????????# #?????????????? | | ???? ######### ##?????????????? | | ???? ??????????# ##??????????????? | | ???? ####????????????# #???????????????? | | ???????????????????????#n #???????????????? | | ???????????????????????# ###???????????????? | | ???????????????????????#=#?????????????????? | | ???????????????????????#%###???????????????? | | ??????????????????????##=[%### #?????????? | | ??????????????????????#[%%! #?????????? | | ??????????????????????# [ # #?????????? | | ??????????????????????# ##????????????? | | ??????????????????????## ##?????????????? | | ???????????????????????######??????????????? | | ???????????????????????????????????????????? | | ???????????????????????????????????????????? | | ???????????????????????????????????????????? | | ???????????????????????????????????????????? | | ???????????????????????????????????????????? | | ???????????????????????????????????????????? | | ???????????????????????????????????????????? | | ???????????????????????????????????????????? | | ???????????????????????????????????????????? | | ???????????????????????????????????????????? | +----------------------------------------------------+ Best States ------------- Heat Dissipation 25 Energy Generation 5 Energy Capacity 100 Matter Stores 106 Matter Capacity 300 Sight Range 16 Terrain Scan Density 10 Evasion (%) 50 Item Schematics ----------------- None Robot Schematics ------------------ None Fabricated ------------ Nothing Repaired ---------- Nothing Studied --------- None Alien Tech Used ----------------- None Achievements -------------- None Challenges ------------ None RPGLIKE | -11 -10 -10 -9 -9 -9 -8 --------- Run | Yrd Mat Min Mat Min Exi Min Levels Raised 2 | . . . 1 . . 1 XP Earned 6800 | 3000 . 600 1500 500 350 850 XP Spent 100 | . . . . . 100 . Upgrades 1 | . . . . . 1 . Mass Support 1 | . . . . . 1 . Protomatter Created 101 | . . . . . . 101 Protomatter Decayed 77 | . . . . 77 . . Game ------ Seed SlugDefenseCape Manual? 0 Play Time 00:03:20 Cumulative 667.6 hours Start 2026.07.16 @ 09:04:05 End 2026.07.16 @ 09:07:18 Sessions 1 Manual Loads 0 Difficulty Rogue Special Mode Winter2019/RPGLIKE Game No. 321 Rogue 167 Adventurer 154 Explorer 0 Win Type - Total 22 Types 4/5/4/3/2/1/0/1/1/1 Lore% 95 Gallery% 88 Achievement% 68 Wizard Run 0 Options --------- Layout 0 ASCII 0 Keyboard 0 Movement Numpad Keybinds 0 Fullscreen 2 Font 18/SmallcapsGlow Map View 76x50 Zoom Use 0% Tactical HUD 1 Map Filters NONE Filters NONE Steam 1 RUN: 288e2368-51a6-450e-b79e-b8c198392cf2